[Event "Lliga Catalana 2024"]
[Site "Catalonia"]
[Date "2024.03.02"]
[Round "7.4"]
[White "Ventura Bolet, Maxim"]
[Black "Adan Bermudez, Sergio"]
[Result "1-0"]
[ECO "A09"]
[WhiteElo "2233"]
[BlackElo "2303"]
[Annotator "TA"]
[PlyCount "57"]
[EventDate "2024.01.18"]
[EventType "team-tourn"]
[EventCountry "ESP"]
[SourceTitle "playchess.com"]
[Source "ChessBase"]
[SourceQuality "1"]
[TimeControl "5400+30"]

{[%evp 9,57,0,0,0,0,0,0,0,0,0,0,0,0,0,13,-56,-45,-66,55,0,0,-27,0,0,27,35,72,-69,-75,-65,-66,-132,-126,-129,-124,-128,-112,-122,-43,-47,84,8,56,54,589,557,848,822,2658,2616]} 1. Nf3 {[%emt 0:00:07]} d5 {[%emt 0:00:34]} 2. e3 {[%emt 0:00:28]} c5 {[%emt 0:00:15]} 3. c4 {[%emt 0:00:27]} d4 {[%emt 0:00:08]} 4. b4 {[%emt 0:00:07]} f6 {[%emt 0:05:17]} 5. exd4 {[%emt 0:02:37]} cxd4 {[%emt 0:00:09]} 6. c5 {[%emt 0:01:04]} e5 {[%emt 0:07:40]} 7. Bc4 {[%emt 0:01:18]} a5 {[%emt 0:02:52]} 8. Qb3 {[%emt 0:14:48] The position is equal.} Nh6 {[%emt 0:06:48] Prevents Bf7+.} 9. d3 {[%emt 0:08:36]} axb4 {[%emt 0:08:25]} 10. Bxh6 gxh6 11. Bf7+ {[%emt 0:23:22]} Ke7 {[%emt 0:05:10]} 12. Bg8 {[%emt 0:01:55]} ({White should try} 12. O-O $1 $11) 12... Qe8 {[%emt 0:05:26][%cal Oh8g8]} 13. O-O {[%emt 0:03:12][%cal Of3d4]} Bg7 (13... Rxg8 $15 14. Qxg8 Qf7) 14. Bd5 {[%emt 0:39:29]} ({Better is} 14. Bc4 $1 $14) 14... Qa4 $1 $11 {[%emt 0:02:51] aiming for ...Qxb3.} 15. Qb2 {[%emt 0:00:00]} Rd8 {[%emt 0:03:44]} 16. Bb3 {[%emt 0:00:00]} Qb5 17. Qe2 {[%emt 0:00:00]} Na6 {[%emt 0:24:37] [#]} 18. Bc4 {[%emt 0:00:00] Some like it hot} ({Only move:} 18. Qe4 $1 $16 {[%cal Re4h7]} Nxc5 (18... Qxc5 $2 19. Qxh7 Rf8 20. Qxg7+ $18) 19. Qxh7 Nxb3 20. Qxg7+ Ke6 21. Nbd2) 18... Qc6 $15 {[%emt 0:00:21]} (18... Qxc5 $6 19. Nbd2 $14) 19. Nbd2 Nxc5 {[%cal Ba6c5,Bc5a4,Ba4c3][%mdl 32]} (19... Qxc5 $2 20. Rac1 Qc6 21. Nh4 $18) 20. Rac1 {[%emt 0:00:00] [#]} (20. Nh4 $15) 20... Na4 $1 $17 {[%emt 0:06:09] White must now prevent ...Nc3.} 21. Nh4 Nc3 {[%emt 0:00:00]} 22. Qh5 Qe8 {[%emt 0:00:00] Prevents Qf7+.} 23. Qf3 {[%emt 0:00:00]} h5 {[%emt 0:08:21]} (23... Qd7 $17 {[%cal Od7g4] ...Qg4! is the strong threat.} 24. h3 Kd6 (24... Nxa2 $2 25. Ra1 $18) 25. Ne4+ Kc7 26. Nxf6 Bxf6 27. Qxf6 Qd6 28. Qf7+ Kb8) 24. Rce1 $15 {[%emt 0:00:00]} Kf8 {[%emt 0:01:28]} (24... Nxa2 25. Qg3 Qh8 26. f4 $18) (24... Kd6 $15 {stays ahead.}) 25. h3 {[%emt 0:00:00]} (25. Ne4 $16 Bg4 (25... Nxa2 $2 {loses.} 26. Nxf6 Qc6 27. Nd7+ Ke7 28. Qf7+ Kd6 29. Qxg7 $18) 26. Qg3) 25... Ra5 {[%emt 0:02:07]} (25... Nxa2 26. Qg3 (26. Ne4 Ra6 $18) 26... b5 27. Bb3 $18) (25... b5 $11 {is superior.} 26. Qxa8 bxc4 27. Nxc4 Bxh3) 26. Ne4 $14 {[%emt 0:00:18]} Qe7 {[%emt 0:08:43][%mdl 8192]} (26... Nxe4 $14 27. Qxe4 f5 28. Nxf5 Qg6) 27. Qxh5 $18 {[%emt 0:00:52] White is clearly winning.} Be6 {[%emt 0:01:44]} 28. Qxh7 {[%emt 0:00:57] Ng6+ would now be deadly.} Bf7 {[%emt 0:01:08]} 29. Ng6+ {[%emt 0:00:36] Weighted Error Value: White=0.24 (precise) /Black=0.49.  Loses game:     	---       	Black=1      Mistake:       	White=5     	Black=4      Inaccurate:     	White=1     	Black=5      OK:         	White=10    	Black=6      Best:        	White=6     	Black=1      Strong:       	---       	Black=2} 1-0

[Event "Lliga Catalana 2024"]
[Site "Catalonia"]
[Date "2024.03.02"]
[Round "7.5"]
[White "Colon Garcia, Enrique"]
[Black "Ventura Bolet, Alexandre"]
[Result "1-0"]
[ECO "B04"]
[WhiteElo "2260"]
[BlackElo "2252"]
[Annotator "RC"]
[PlyCount "73"]
[EventDate "2024.01.18"]
[EventType "team-tourn"]
[EventCountry "ESP"]
[SourceTitle "playchess.com"]
[Source "ChessBase"]
[SourceQuality "1"]
[TimeControl "5400+30"]

1. e4 {[%emt 0:00:05]} Nf6 {[%emt 0:00:08]} 2. e5 {[%emt 0:00:22]} Nd5 {[%emt 0:00:06]} 3. d4 {[%emt 0:00:08]} d6 {[%emt 0:00:06]} 4. Nf3 {[%emt 0:00:55]} dxe5 {[%emt 0:00:15]} 5. Nxe5 {[%emt 0:01:41]} c6 {[%emt 0:00:08]} 6. Qf3 {[%emt 0:08:34]} Be6 {[%emt 0:02:35]} 7. c3 {[%emt 0:01:46]} Nd7 {[%emt 0:02:04]} 8. Nd3 {[%emt 0:00:21]} g6 {[%emt 0:02:47]} 9. c4 {[%emt 0:10:36]} N5f6 {[%emt 0:05:27]} 10. b3 {[%emt 0:02:52]} Bg7 {[%emt 0:00:43]} 11. Bb2 {[%emt 0:01:02]} O-O {[%emt 0:03:12]} 12. Nd2 {[%emt 0:18:50]} c5 {[%emt 0:22:53]} 13. h3 {[%emt 0:23:20]} Bf5 {[%emt 0:10:05]} 14. g4 {[%emt 0:06:04]} Bxd3 {[%emt 0:01:08]} 15. Qxd3 {[%emt 0:00:05]} cxd4 {[%emt 0:02:45]} 16. Bxd4 {[%emt 0:02:31]} Qc7 {[%emt 0:08:53]} 17. Bg2 {[%emt 0:06:31]} Rad8 {[%emt 0:03:45]} 18. Qg3 {[%emt 0:00:23]} Qxg3 {[%emt 0:06:49]} 19. fxg3 {[%emt 0:00:04]} b6 {[%emt 0:01:48]} 20. Ke2 {[%emt 0:05:18]} Nc5 {[%emt 0:04:52]} 21. Be3 {[%emt 0:00:17]} Rd6 {[%emt 0:05:30]} 22. Rab1 {[%emt 0:05:34]} Rfd8 {[%emt 0:01:43]} 23. b4 {[%emt 0:01:25]} Na4 {[%emt 0:01:45]} 24. Rb3 {[%emt 0:00:06]} Ne8 {[%emt 0:07:53]} 25. Rc1 {[%emt 0:01:43]} Nc7 {[%emt 0:02:18]} 26. c5 {[%emt 0:01:29]} bxc5 {[%emt 0:00:05]} 27. bxc5 {[%emt 0:00:04]} Re6 {[%emt 0:00:27]} 28. Rc4 {[%emt 0:01:30]} Nb2 {[%emt 0:02:12]} 29. Re4 {[%emt 0:00:05]} Ra6 {[%emt 0:00:54]} 30. Rxe7 {[%emt 0:00:37]} Ne6 {[%emt 0:00:44]} 31. c6 {[%emt 0:00:04]} Rxa2 {[%emt 0:01:11]} 32. Rxe6 {[%emt 0:00:25]} Nc4 {[%emt 0:00:43]} 33. c7 {[%emt 0:00:16]} Rf8 {[%emt 0:00:34]} 34. Rb8 {[%emt 0:00:18]} Nxd2 {[%emt 0:00:30]} 35. Rxf8+ {[%emt 0:00:14]} Bxf8 {[%emt 0:00:02]} 36. Bxd2 {[%emt 0:00:15]} Rc2 {[%emt 0:00:16]} 37. Rc6 {[%emt 0:00:03]} 1-0

[Event "Lliga Catalana 2024"]
[Site "Catalonia"]
[Date "2024.03.02"]
[Round "7.5"]
[White "Pi Pares, Albert"]
[Black "Leiro Giralt, Daniel"]
[Result "1-0"]
[ECO "C47"]
[WhiteElo "2240"]
[BlackElo "2152"]
[Annotator "RC"]
[PlyCount "101"]
[EventDate "2024.01.18"]
[EventType "team-tourn"]
[EventCountry "ESP"]
[SourceTitle "playchess.com"]
[Source "ChessBase"]
[SourceQuality "1"]
[TimeControl "5400+30"]

1. e4 {[%emt 1:31:00]} e5 {[%emt 0:00:46]} 2. Nf3 {[%emt 0:00:00]} Nf6 {[%emt 0:00:11]} 3. Nc3 {[%emt 0:01:00]} Nc6 4. h3 {[%emt 0:00:00]} Bb4 {[%emt 0:11:27]} 5. Bc4 {[%emt 0:00:00]} Nxe4 {[%emt 0:05:07]} 6. Nxe4 {[%emt 0:00:00]} d5 {[%emt 0:00:16]} 7. Bd3 {[%emt 0:00:00]} dxe4 {[%emt 0:00:27]} 8. Bxe4 {[%emt 0:00:00]} O-O {[%emt 0:03:55]} 9. O-O {[%emt 0:00:00]} Re8 {[%emt 0:16:49]} 10. Re1 {[%emt 0:00:00]} Qf6 {[%emt 0:19:50]} 11. c3 {[%emt 0:00:00]} Bd6 {[%emt 0:04:08]} 12. d4 {[%emt 0:00:00]} Bf5 {[%emt 0:04:05]} 13. Bg5 {[%emt 0:00:00]} Qg6 {[%emt 0:00:17]} 14. Bxc6 {[%emt 0:00:00]} bxc6 {[%emt 0:00:32]} 15. dxe5 {[%emt 0:00:00]} Bxe5 {[%emt 0:03:10]} 16. Rxe5 {[%emt 0:00:00]} Rxe5 {[%emt 0:00:17]} 17. Nxe5 {[%emt 0:00:00]} Qxg5 {[%emt 0:00:20]} 18. Qf3 {[%emt 0:00:00]} Re8 {[%emt 0:11:41]} 19. Qxc6 {[%emt 0:00:00]} Qd8 {[%emt 0:11:15]} 20. Re1 {[%emt 0:00:00]} Re6 {[%emt 0:02:48]} 21. Qf3 {[%emt 0:00:00]} Bg6 {[%emt 0:01:53]} 22. Re3 {[%emt 0:00:00]} h6 {[%emt 0:01:36]} 23. Nc6 {[%emt 0:00:00]} Qd2 {[%emt 0:00:23]} 24. Rxe6 {[%emt 0:00:00]} fxe6 {[%emt 0:00:06]} 25. Ne7+ {[%emt 0:00:00]} Kh7 {[%emt 0:00:04]} 26. Qf8 {[%emt 0:00:00]} h5 {[%emt 0:01:29]} 27. Qg8+ {[%emt 0:00:00]} Kh6 {[%emt 0:00:02]} 28. Nxg6 {[%emt 0:00:00]} Qd1+ {[%emt 0:00:46]} 29. Kh2 {[%emt 0:00:00]} Qd6+ {[%emt 0:00:10]} 30. g3 {[%emt 0:00:00]} Kxg6 {[%emt 0:00:02]} 31. Qe8+ {[%emt 0:00:00]} Kh6 {[%emt 0:00:17]} 32. Qa4 {[%emt 0:00:00]} Qb6 {[%emt 0:00:42]} 33. Qf4+ {[%emt 0:00:00]} Kh7 {[%emt 0:01:23]} 34. b3 {[%emt 0:00:00]} g6 {[%emt 0:00:40]} 35. h4 {[%emt 0:00:00]} Qa5 {[%emt 0:00:35]} 36. b4 {[%emt 0:00:00]} Qxa2 {[%emt 0:00:25]} 37. Qxc7+ {[%emt 0:00:00]} Kg8 {[%emt 0:00:31]} 38. Qd8+ {[%emt 0:00:00]} Kf7 {[%emt 0:00:12]} 39. Qd7+ {[%emt 0:00:00]} Kg8 {[%emt 0:00:31]} 40. Qe8+ {[%emt 0:00:00]} Kg7 {[%emt 0:00:02]} 41. Qe7+ {[%emt 0:00:00]} Kg8 {[%emt 0:00:10]} 42. Qf6 {[%emt 0:00:00]} Kh7 {[%emt 0:00:03]} 43. Qd4 {[%emt 0:00:00]} a6 {[%emt 0:01:05]} 44. Kg2 {[%emt 0:00:00]} Qe2 {[%emt 0:00:36]} 45. c4 {[%emt 0:00:00]} e5 {[%emt 0:00:21]} 46. Qc3 {[%emt 0:00:00]} Qe4+ {[%emt 0:00:25]} 47. Kg1 {[%emt 0:00:00]} Qb1+ {[%emt 0:00:20]} 48. Kh2 {[%emt 0:00:00]} Qf5 {[%emt 0:01:48]} 49. Qe3 {[%emt 0:00:00]} Qb1 {[%emt 0:00:17]} 50. Qa7+ {[%emt 0:00:00]} Kg8 {[%emt 0:00:15]} 51. Qxa6 {[%emt 0:00:00]} 1-0

[Event "Lliga Catalana 2024"]
[Site "Catalonia"]
[Date "2024.03.02"]
[Round "7.6"]
[White "Moreno Martin-Viveros, Alvaro"]
[Black "Gonzalez Rodriguez, Jorge A."]
[Result "1-0"]
[ECO "C02"]
[WhiteElo "2159"]
[BlackElo "2217"]
[Annotator "ChessBase"]
[PlyCount "99"]
[EventDate "2024.01.18"]
[EventType "team-tourn"]
[EventCountry "ESP"]
[SourceTitle "playchess.com"]
[Source "ChessBase"]
[SourceQuality "1"]
[TimeControl "5400+30"]

1. e4 {[%emt 0:00:07]} e6 {[%emt 0:00:17]} 2. d4 {[%emt 0:00:18]} d5 {[%emt 0:00:03]} 3. e5 {[%emt 0:00:09]} c5 {[%emt 0:00:09]} 4. c3 {[%emt 0:00:09]} Nc6 {[%emt 0:00:03]} 5. Nf3 {[%emt 0:00:09]} Qb6 {[%emt 0:00:12]} 6. Be2 {[%emt 0:00:29]} Bd7 {[%emt 0:00:40]} 7. O-O {[%emt 0:00:30]} a5 {[%emt 0:00:19]} 8. Na3 {[%emt 0:01:48]} cxd4 {[%emt 0:01:52]} 9. Nb5 {[%emt 0:01:23]} dxc3 {[%emt 0:24:51]} 10. bxc3 {[%emt 0:00:38]} Nh6 {[%emt 0:09:11]} 11. Bg5 {[%emt 0:07:27]} f6 {[%emt 0:22:11]} 12. exf6 {[%emt 0:00:31]} Nf7 {[%emt 0:00:01]} 13. fxg7 {[%emt 0:00:14]} Bxg7 {[%emt 0:00:07]} 14. Rb1 {[%emt 0:00:07]} O-O {[%emt 0:02:54]} 15. Be3 {[%emt 0:05:58]} Qd8 {[%emt 0:00:41]} 16. Bc5 {[%emt 0:00:06]} Re8 {[%emt 0:00:53]} 17. c4 {[%emt 0:00:56]} b6 {[%emt 0:09:57]} 18. Be3 {[%emt 0:00:58]} Nb4 {[%emt 0:00:34]} 19. cxd5 {[%emt 0:01:13]} Nxa2 {[%emt 0:09:32]} 20. dxe6 {[%emt 0:10:11]} Bxe6 {[%emt 0:08:53]} 21. Qxd8 {[%emt 0:00:39]} Rexd8 {[%emt 0:04:46]} 22. Bxb6 {[%emt 0:07:09]} Rdb8 {[%emt 0:00:55]} 23. Bd4 {[%emt 0:00:10]} Bf5 {[%emt 0:01:01]} 24. Ra1 {[%emt 0:00:34]} Nb4 {[%emt 0:00:11]} 25. Bxg7 {[%emt 0:00:27]} Kxg7 {[%emt 0:00:05]} 26. Nfd4 {[%emt 0:00:54]} Bd7 {[%emt 0:00:19]} 27. Rfc1 {[%emt 0:01:22]} Bxb5 {[%emt 0:02:01]} 28. Nxb5 {[%emt 0:00:07]} Ne5 {[%emt 0:00:48]} 29. Rc7+ {[%emt 0:02:15]} Kh8 {[%emt 0:00:19]} 30. f4 {[%emt 0:00:24]} Ned3 {[%emt 0:00:17]} 31. Bf3 {[%emt 0:05:59]} Ra6 {[%emt 0:00:14]} 32. Nc3 {[%emt 0:01:13]} Nxf4 {[%emt 0:00:14]} 33. Be4 {[%emt 0:00:33]} Ng6 {[%emt 0:00:18]} 34. Rd1 {[%emt 0:00:19]} a4 {[%emt 0:00:53]} 35. Bb7 {[%emt 0:01:35]} Ra7 {[%emt 0:00:48]} 36. Rdd7 {[%emt 0:03:25]} Nf8 {[%emt 0:00:03]} 37. Rg7 {[%emt 0:00:06]} a3 {[%emt 0:00:51]} 38. Na2 {[%emt 0:02:09]} Raxb7 {[%emt 0:00:41]} 39. Rxb7 {[%emt 0:00:13]} Rxb7 {[%emt 0:00:21]} 40. Rxb7 {[%emt 0:00:06]} Nxa2 {[%emt 0:00:05]} 41. Ra7 {[%emt 0:00:05]} Nb4 {[%emt 0:00:19]} 42. Rxa3 {[%emt 0:00:07]} Nd5 {[%emt 0:00:20]} 43. Ra7 {[%emt 0:00:19]} Kg8 {[%emt 0:00:19]} 44. Kf2 {[%emt 0:00:07]} Nf6 {[%emt 0:00:10]} 45. Kf3 {[%emt 0:00:11]} N6d7 {[%emt 0:00:55]} 46. Ke4 {[%emt 0:00:31]} Kf7 {[%emt 0:01:19]} 47. Kf5 {[%emt 0:00:40]} Kg8 {[%emt 0:01:34]} 48. h4 {[%emt 0:01:54]} Kf7 {[%emt 0:00:25]} 49. h5 {[%emt 0:01:17]} h6 {[%emt 0:01:09]} 50. Ra1 {[%emt 0:47:19]} 1-0

[Event "Lliga Catalana 2024"]
[Site "Catalonia"]
[Date "2024.03.02"]
[Round "7.6"]
[White "Fortuny Profitos, Jordi"]
[Black "Delisau Gil, Oriol"]
[Result "1-0"]
[ECO "A45"]
[WhiteElo "2120"]
[BlackElo "2210"]
[Annotator "RC"]
[PlyCount "127"]
[EventDate "2024.01.18"]
[EventType "team-tourn"]
[EventCountry "ESP"]
[SourceTitle "playchess.com"]
[Source "ChessBase"]
[SourceQuality "1"]
[TimeControl "5400+30"]

1. d4 {[%emt 0:08:52]} Nf6 {[%emt 0:00:11]} 2. Bf4 {[%emt 0:00:03]} g6 {[%emt 0:00:09]} 3. Nc3 {[%emt 0:00:03]} d5 {[%emt 0:00:18]} 4. e3 {[%emt 0:00:03]} Bg7 {[%emt 0:00:25]} 5. h4 {[%emt 0:00:02]} h5 {[%emt 0:00:36]} 6. Nf3 {[%emt 0:00:03]} O-O {[%emt 0:01:22]} 7. Ne5 {[%emt 0:01:49]} c5 {[%emt 0:00:39]} 8. Qd2 {[%emt 0:00:05]} Nc6 {[%emt 0:00:59]} 9. O-O-O {[%emt 0:02:13]} Qa5 {[%emt 0:06:08]} 10. Kb1 {[%emt 0:01:20]} cxd4 {[%emt 0:37:04]} 11. exd4 {[%emt 0:00:07]} Bf5 {[%emt 0:00:16]} 12. f3 {[%emt 0:06:20]} Rac8 {[%emt 0:05:01]} 13. a3 {[%emt 0:09:07]} b5 {[%emt 0:26:45]} 14. Nxc6 {[%emt 0:09:59]} Rxc6 {[%emt 0:01:14]} 15. Nxd5 {[%emt 0:10:28]} Bxc2+ {[%emt 0:06:11]} 16. Ka1 {[%emt 0:00:05]} Qd8 {[%emt 0:07:39]} 17. Nb4 {[%emt 0:00:05]} Bxd1 {[%emt 0:02:40]} 18. Nxc6 {[%emt 0:00:04]} Qe8 {[%emt 0:00:32]} 19. Bxb5 {[%emt 0:01:03]} a6 {[%emt 0:00:35]} 20. Rxd1 {[%emt 0:01:01]} axb5 {[%emt 0:00:02]} 21. d5 {[%emt 0:01:27]} Nd7 {[%emt 0:01:33]} 22. Re1 {[%emt 0:01:13]} Nc5 {[%emt 0:00:38]} 23. Qc2 {[%emt 0:03:52]} Na4 {[%emt 0:00:23]} 24. Be5 {[%emt 0:00:51]} Qd7 {[%emt 0:00:32]} 25. Bxg7 {[%emt 0:03:56]} Kxg7 {[%emt 0:00:02]} 26. Nxe7 {[%emt 0:00:39]} Qd6 {[%emt 0:00:58]} 27. Qe4 {[%emt 0:07:32]} Qf6 {[%emt 0:00:16]} 28. Qe5 {[%emt 0:00:34]} Rd8 {[%emt 0:00:33]} 29. g4 {[%emt 0:06:25]} hxg4 {[%emt 0:00:45]} 30. fxg4 {[%emt 0:02:28]} Nb6 {[%emt 0:00:31]} 31. Qxf6+ {[%emt 0:03:06]} Kxf6 {[%emt 0:00:02]} 32. g5+ {[%emt 0:00:05]} Kg7 {[%emt 0:00:11]} 33. Rd1 {[%emt 0:01:04]} Kf8 {[%emt 0:01:10]} 34. Nc6 {[%emt 0:01:16]} Rxd5 {[%emt 0:00:29]} 35. Rxd5 {[%emt 0:00:05]} Nxd5 {[%emt 0:00:08]} 36. Nd4 {[%emt 0:00:16]} b4 {[%emt 0:00:36]} 37. a4 {[%emt 0:01:38]} Ke7 {[%emt 0:00:03]} 38. Ka2 {[%emt 0:00:07]} Kd6 {[%emt 0:01:01]} 39. Kb3 {[%emt 0:00:03]} Kc5 {[%emt 0:00:47]} 40. Nc2 {[%emt 0:00:13]} Ne7 {[%emt 0:00:31]} 41. Nxb4 {[%emt 0:00:09]} Nf5 {[%emt 0:00:01]} 42. Nd3+ {[%emt 0:01:35]} Kd6 {[%emt 0:00:42]} 43. Kc4 {[%emt 0:03:04]} Nxh4 {[%emt 0:00:09]} 44. Ne1 {[%emt 0:00:33]} Nf5 {[%emt 0:00:44]} 45. b4 {[%emt 0:00:55]} Ne3+ {[%emt 0:00:46]} 46. Kd4 {[%emt 0:03:15]} Nd5 {[%emt 0:00:01]} 47. Nd3 {[%emt 0:00:44]} f6 {[%emt 0:00:17]} 48. gxf6 {[%emt 0:00:12]} Nxf6 {[%emt 0:00:02]} 49. Ne5 {[%emt 0:00:13]} Nd5 {[%emt 0:00:08]} 50. b5 {[%emt 0:01:13]} Ne7 {[%emt 0:01:27]} 51. Nc4+ {[%emt 0:01:03]} Kc7 {[%emt 0:00:32]} 52. Kc5 {[%emt 0:00:14]} g5 {[%emt 0:00:31]} 53. Ne5 {[%emt 0:02:23]} Nc8 {[%emt 0:01:05]} 54. a5 {[%emt 0:00:34]} Kb7 {[%emt 0:00:30]} 55. Ng4 {[%emt 0:04:39]} Na7 {[%emt 0:00:38]} 56. a6+ {[%emt 0:08:02]} Kb8 {[%emt 0:00:28]} 57. Nf6 {[%emt 0:00:00]} Nxb5 {[%emt 0:00:30]} 58. Kxb5 {[%emt 0:00:00]} Ka7 {[%emt 0:00:12]} 59. Ng4 {[%emt 0:00:00]} Kb8 {[%emt 0:00:40]} 60. Kb6 {[%emt 0:00:00]} Ka8 {[%emt 0:00:08]} 61. Nf6 {[%emt 0:00:00]} g4 {[%emt 0:00:11]} 62. a7 {[%emt 0:00:00]} g3 {[%emt 0:00:09]} 63. Nd5 {[%emt 0:00:00]} g2 {[%emt 0:00:05]} 64. Ka6 {[%emt 0:04:00]} 1-0

[Event "Lliga Catalana 2024"]
[Site "Catalonia"]
[Date "2024.03.02"]
[Round "7.7"]
[White "Roca Planas, Edgar"]
[Black "Cano Sevilla, Ivan"]
[Result "1-0"]
[ECO "B27"]
[WhiteElo "2269"]
[BlackElo "2094"]
[Annotator "TA"]
[PlyCount "51"]
[EventDate "2024.01.18"]
[EventType "team-tourn"]
[EventCountry "ESP"]
[SourceTitle "playchess.com"]
[Source "ChessBase"]
[SourceQuality "1"]
[TimeControl "5400+30"]

{[%evp 9,51,13,31,24,25,23,44,34,72,47,66,68,152,144,174,170,162,181,343,344,362,134,281,244,243,263,252,256,414,390,679,692,742,716,1805,1779,1749,1616,2127,968,956,675,794,799]} 1. e4 {[%emt 0:00:08]} c5 {[%emt 0:00:12]} 2. Nf3 {[%emt 0:00:33]} g6 {[%emt 0:00:07]} 3. c3 {[%emt 0:00:24]} d5 {[%emt 0:01:20]} 4. e5 {[%emt 0:01:25]} Nc6 {[%emt 0:04:31]} 5. d4 {[%emt 0:01:47]} Bg7 {[%emt 0:16:23]} 6. Bb5 {[%emt 0:00:49]} Qb6 {[%emt 0:09:59]} 7. Bxc6+ {[%emt 0:04:57]} bxc6 {[%emt 0:04:49]} 8. O-O {[%emt 0:05:54] White is slightly better.} cxd4 {[%emt 0:02:07]} 9. cxd4 {[%emt 0:00:22]} Bg4 {[%emt 0:00:01]} 10. Nbd2 {[%emt 0:00:14]} c5 {[%emt 0:03:41]} ({Black should play} 10... e6 $14) 11. dxc5 {[%emt 0:03:33]} Qxc5 {[%emt 0:00:37] [#]} 12. h3 $1 {[%emt 0:00:58]} Bd7 {[%emt 0:08:31]} 13. Nb3 {[%emt 0:00:35]} Qc4 {[%emt 0:04:54]} (13... Qc8 14. Bf4 (14. Qxd5 Bc6 $18) 14... e6) 14. Be3 $18 {[%emt 0:11:55]} Bb5 {[%emt 0:02:13]} 15. Nbd2 {[%emt 0:01:24]} (15. Re1 $18 {is more deadly.}) 15... Qd3 {[%emt 0:03:49]} (15... Qa4 $16 {keeps fighting.} 16. Qxa4 Bxa4) 16. a4 {[%emt 0:02:08]} Bd7 {[%emt 0:00:52]} 17. Ra3 {[%emt 0:01:42]} Qa6 {[%emt 0:00:41]} 18. Nb3 {[%emt 0:01:45]} Rc8 $2 {[%emt 0:07:56]} (18... Nh6 19. Nc5 (19. Qxd5 Bc6 $18) 19... Qc8) 19. Nc5 {[%emt 0:00:56]} ({Less strong is} 19. Qxd5 Bc6 20. Qa5 Qxa5 21. Nxa5 Bxf3 $18) 19... Qa5 {[%emt 0:04:03] Black is weak on the dark squares} (19... Qc6 20. b4 e6) 20. Nxd7 {[%emt 0:01:19] White is clearly winning.} Kxd7 {[%emt 0:00:04] [#]} 21. b4 $1 {[%emt 0:00:06][%mdl 512]} Qxb4 {[%emt 0:02:21]} (21... Qd8 22. Qxd5+) 22. Qxd5+ {[%emt 0:00:04]} Ke8 {[%emt 0:00:05] [#]} 23. Rd1 $1 {[%emt 0:00:45] Qd7+ would kill now.} Qb8 {[%emt 0:01:08]} (23... Bh6 24. Qd7+) 24. Rb3 {[%emt 0:00:32]} (24. Ng5 $142 Nh6 25. Rb3 (25. Qd7+ Kf8 $18)) 24... Qa8 {[%emt 0:00:01]} 25. Qd7+ {[%emt 0:01:38]} Kf8 {[%emt 0:00:15]} 26. Rb7 {[%emt 0:00:05] White took control after the opening.   Weighted Error Value: White=0.45/Black=0.74.  Missed win:     	White=1     	---        Mistake:       	---       	Black=5      Inaccurate:     	---       	Black=1      OK:         	White=8     	Black=4      Best:        	White=1     	---        Strong:       	White=1     	---} 1-0

[Event "Lliga Catalana 2024"]
[Site "Catalonia"]
[Date "2024.03.02"]
[Round "7.7"]
[White "Banos, Oscar"]
[Black "Canal Oliveras, Joan"]
[Result "1-0"]
[ECO "A10"]
[WhiteElo "2199"]
[BlackElo "2092"]
[Annotator "RC"]
[PlyCount "85"]
[EventDate "2024.01.18"]
[EventType "team-tourn"]
[EventCountry "ESP"]
[SourceTitle "playchess.com"]
[Source "ChessBase"]
[SourceQuality "1"]
[TimeControl "5400+30"]

1. Nf3 {[%emt 0:00:04]} e6 {[%emt 0:00:19]} 2. c4 {[%emt 0:00:34]} f5 {[%emt 0:00:20]} 3. g3 {[%emt 0:01:04]} Nf6 {[%emt 0:00:45]} 4. Bg2 {[%emt 0:00:06]} Be7 {[%emt 0:00:50]} 5. O-O {[%emt 0:00:19]} O-O {[%emt 0:00:04]} 6. d3 {[%emt 0:02:03]} d6 {[%emt 0:07:02]} 7. Nc3 {[%emt 0:01:14]} Qe8 {[%emt 0:01:42]} 8. Bg5 {[%emt 0:04:28]} h6 {[%emt 0:06:44]} 9. Bd2 {[%emt 0:09:05]} Qh5 {[%emt 0:09:58]} 10. e3 {[%emt 0:00:43]} g5 {[%emt 0:14:17]} 11. Ne1 {[%emt 0:08:21]} Qxd1 {[%emt 0:05:32]} 12. Rxd1 {[%emt 0:01:08]} Nc6 {[%emt 0:01:32]} 13. f4 {[%emt 0:06:10]} Bd7 {[%emt 0:13:07]} 14. Nc2 {[%emt 0:03:56]} Rae8 {[%emt 0:07:23]} 15. b4 {[%emt 0:02:43]} Kh7 {[%emt 0:03:21]} 16. b5 {[%emt 0:04:32]} Nd8 {[%emt 0:00:18]} 17. a4 {[%emt 0:00:21]} e5 {[%emt 0:03:21]} 18. a5 {[%emt 0:17:10]} Bc8 {[%emt 0:02:34]} 19. a6 {[%emt 0:10:10]} b6 {[%emt 0:02:57]} 20. Nb4 {[%emt 0:00:30]} Bd7 {[%emt 0:01:35]} 21. Nbd5 {[%emt 0:07:11]} Nxd5 {[%emt 0:03:00]} 22. Nxd5 {[%emt 0:00:06]} Ne6 {[%emt 0:00:15]} 23. fxe5 {[%emt 0:01:00]} dxe5 {[%emt 0:00:23]} 24. Nxe7 {[%emt 0:00:54]} Rxe7 {[%emt 0:00:09]} 25. Bb4 {[%emt 0:00:07]} Ree8 {[%emt 0:02:05]} 26. Bxf8 {[%emt 0:00:10]} Rxf8 {[%emt 0:00:02]} 27. d4 {[%emt 0:04:15]} exd4 {[%emt 0:00:57]} 28. exd4 {[%emt 0:00:40]} Kg6 {[%emt 0:00:04]} 29. Bd5 {[%emt 0:01:09]} f4 {[%emt 0:02:44]} 30. Bxe6 {[%emt 0:02:09]} Bxe6 {[%emt 0:00:05]} 31. d5 {[%emt 0:00:19]} Bh3 {[%emt 0:00:12]} 32. Rf2 {[%emt 0:01:23]} Rf6 {[%emt 0:00:04]} 33. Re1 {[%emt 0:00:57]} Rf7 {[%emt 0:01:51]} 34. gxf4 {[%emt 0:04:18]} gxf4 {[%emt 0:00:09]} 35. Rd2 {[%emt 0:00:12]} Kf5 {[%emt 0:01:43]} 36. Kf2 {[%emt 0:00:35]} h5 {[%emt 0:01:04]} 37. Rde2 {[%emt 0:00:54]} Rg7 {[%emt 0:03:31]} 38. Rg1 {[%emt 0:00:46]} Rd7 {[%emt 0:00:45]} 39. Re6 {[%emt 0:00:53]} Bg4 {[%emt 0:00:06]} 40. h4 {[%emt 0:00:59]} Rg7 {[%emt 0:01:20]} 41. Rge1 {[%emt 0:01:37]} Bh3 {[%emt 0:00:47]} 42. R1e5+ {[%emt 0:01:55]} Kg4 {[%emt 0:00:07]} 43. Rg5+ {[%emt 0:00:16]} 1-0